[Event "*** Titled Tuesday Blitz"]
[Site "Chess.com"]
[Date "2019.05.07"]
[Round "7"]
[White "RegZryt"]
[Black "Koksal06"]
[Result "1-0"]
[WhiteElo "2538"]
[BlackElo "2484"]
[TimeControl "180+2"]
[EndTime "14:35:37 PDT"]
[Termination "RegZryt won by resignation"]

1. d4 {[%clk 0:03:01.9]} 1... d5 {[%clk 0:03:01]} 2. c4 {[%clk 0:03:02.8]} 2...
c6 {[%clk 0:03:02.3]} 3. Nf3 {[%clk 0:03:03.1]} 3... Nf6 {[%clk 0:03:02.8]} 4.
e3 {[%clk 0:03:04.1]} 4... Bf5 {[%clk 0:03:03.9]} 5. Nc3 {[%clk 0:03:03.9]} 5...
e6 {[%clk 0:03:04.9]} 6. Nh4 {[%clk 0:03:02.2]} 6... Bg4 {[%clk 0:03:05.5]} 7.
f3 {[%clk 0:03:03]} 7... Bh5 {[%clk 0:03:06.4]} 8. Qb3 {[%clk 0:02:58.5]} 8...
Qb6 {[%clk 0:03:04.8]} 9. c5 {[%clk 0:02:56.4]} 9... Qc7 {[%clk 0:03:05.9]} 10.
f4 {[%clk 0:02:42.9]} 10... Nbd7 {[%clk 0:03:03.1]} 11. Bd2 {[%clk 0:02:38.1]}
11... Be7 {[%clk 0:03:01.4]} 12. Nf3 {[%clk 0:02:32.3]} 12... O-O {[%clk
0:02:59.9]} 13. Bd3 {[%clk 0:02:31.4]} 13... Bg6 {[%clk 0:02:59.7]} 14. Qc2
{[%clk 0:02:31.9]} 14... b6 {[%clk 0:02:59.7]} 15. cxb6 {[%clk 0:02:32.2]} 15...
axb6 {[%clk 0:03:01.6]} 16. Bxg6 {[%clk 0:02:31]} 16... hxg6 {[%clk 0:03:02.4]}
17. O-O {[%clk 0:02:19]} 17... c5 {[%clk 0:03:03.4]} 18. Ne2 {[%clk 0:01:52.1]}
18... Ne4 {[%clk 0:03:02.3]} 19. Nc3 {[%clk 0:01:48.6]} 19... cxd4 {[%clk
0:02:59.4]} 20. Nxd4 {[%clk 0:01:47.7]} 20... Bf6 {[%clk 0:02:45.9]} 21. Nxe4
{[%clk 0:01:46.6]} 21... Qxc2 {[%clk 0:02:43.7]} 22. Nxf6+ {[%clk 0:01:47.6]}
1-0

[Event "*** Titled Tuesday Blitz"]
[Site "Chess.com"]
[Date "2019.05.07"]
[Round "7"]
[White "champ2005"]
[Black "rookoco"]
[Result "1-0"]
[WhiteElo "2897"]
[BlackElo "2774"]
[TimeControl "180+2"]
[EndTime "14:36:16 PDT"]
[Termination "champ2005 won by resignation"]

1. d4 {[%clk 0:03:01.4]} 1... Nf6 {[%clk 0:03:00.3]} 2. c4 {[%clk 0:03:01.5]}
2... e6 {[%clk 0:03:01.4]} 3. g3 {[%clk 0:03:02.5]} 3... Bb4+ {[%clk 0:03:01.3]}
4. Bd2 {[%clk 0:03:03.3]} 4... Be7 {[%clk 0:03:02.6]} 5. Bg2 {[%clk 0:03:04.5]}
5... O-O {[%clk 0:03:03.2]} 6. Nf3 {[%clk 0:03:05.7]} 6... c5 {[%clk 0:03:04.2]}
7. O-O {[%clk 0:03:02.6]} 7... Nc6 {[%clk 0:02:55]} 8. Bg5 {[%clk 0:02:59.1]}
8... cxd4 {[%clk 0:02:51.5]} 9. Nxd4 {[%clk 0:02:59.8]} 9... Qb6 {[%clk
0:02:47.9]} 10. Nb3 {[%clk 0:02:56.4]} 10... d5 {[%clk 0:02:45.8]} 11. cxd5
{[%clk 0:02:52.8]} 11... Nxd5 {[%clk 0:02:42.3]} 12. Bxe7 {[%clk 0:02:53.5]}
12... Ncxe7 {[%clk 0:02:42]} 13. e4 {[%clk 0:02:54.2]} 13... Nb4 {[%clk
0:02:41.5]} 14. Nc3 {[%clk 0:02:54.1]} 14... Rd8 {[%clk 0:02:42]} 15. Qe2 {[%clk
0:02:52.3]} 15... Bd7 {[%clk 0:02:42]} 16. Rfd1 {[%clk 0:02:46.9]} 16... Be8
{[%clk 0:02:42.1]} 17. Nd2 {[%clk 0:02:36.2]} 17... Nc2 {[%clk 0:02:38.8]} 18.
Nc4 {[%clk 0:02:33.1]} 18... Qa6 {[%clk 0:02:29]} 19. Qxc2 {[%clk 0:02:25.3]}
19... Qxc4 {[%clk 0:02:25]} 20. Rxd8 {[%clk 0:02:12.8]} 20... Rxd8 {[%clk
0:02:24.6]} 21. Rd1 {[%clk 0:02:14.3]} 21... Rxd1+ {[%clk 0:02:25.4]} 22. Qxd1
{[%clk 0:02:15.4]} 22... Qc7 {[%clk 0:02:23.4]} 23. e5 {[%clk 0:02:12.7]} 23...
Bc6 {[%clk 0:02:22.5]} 24. Qd6 {[%clk 0:02:07.4]} 1-0

[Event "*** Titled Tuesday Blitz"]
[Site "Chess.com"]
[Date "2019.05.07"]
[Round "7"]
[White "DamianoLew95"]
[Black "mouseWLZ"]
[Result "0-1"]
[WhiteElo "2459"]
[BlackElo "2607"]
[TimeControl "180+2"]
[EndTime "14:36:40 PDT"]
[Termination "mouseWLZ won by resignation"]

1. d4 {[%clk 0:03:01.9]} 1... Nf6 {[%clk 0:03:00.3]} 2. Bf4 {[%clk 0:03:02]}
2... c5 {[%clk 0:02:59.8]} 3. d5 {[%clk 0:03:02.3]} 3... d6 {[%clk 0:02:58]} 4.
Nc3 {[%clk 0:03:01.2]} 4... g6 {[%clk 0:02:59.1]} 5. e4 {[%clk 0:03:01.4]} 5...
Bg7 {[%clk 0:03:00.4]} 6. Nf3 {[%clk 0:03:02.5]} 6... O-O {[%clk 0:03:01.4]} 7.
h3 {[%clk 0:03:03.5]} 7... b5 {[%clk 0:03:02.5]} 8. Bxb5 {[%clk 0:02:38]} 8...
Nxe4 {[%clk 0:03:01.8]} 9. Nxe4 {[%clk 0:02:28.9]} 9... Qa5+ {[%clk 0:03:02.1]}
10. c3 {[%clk 0:02:28.6]} 10... Qxb5 {[%clk 0:03:02.7]} 11. Qe2 {[%clk
0:02:29.8]} 11... Qxe2+ {[%clk 0:02:51.9]} 12. Kxe2 {[%clk 0:02:31.7]} 12...
Ba6+ {[%clk 0:02:53.2]} 13. Kd2 {[%clk 0:02:28.9]} 13... Bc4 {[%clk 0:02:53.6]}
14. Rhe1 {[%clk 0:02:24.4]} 14... Bxd5 {[%clk 0:02:54.2]} 15. Kc2 {[%clk
0:02:19.7]} 15... Nc6 {[%clk 0:02:40.8]} 16. Ned2 {[%clk 0:02:12.3]} 16... Rfe8
{[%clk 0:02:37.3]} 17. Bg5 {[%clk 0:02:08.7]} 17... a5 {[%clk 0:02:32.2]} 18.
Re2 {[%clk 0:02:07.6]} 18... a4 {[%clk 0:02:31.9]} 19. a3 {[%clk 0:01:59.1]}
19... Rab8 {[%clk 0:02:31]} 20. Rae1 {[%clk 0:01:59.5]} 20... Rb7 {[%clk
0:02:31.7]} 21. Bf4 {[%clk 0:01:57.1]} 21... e5 {[%clk 0:02:30.1]} 22. Be3
{[%clk 0:01:51.7]} 22... Reb8 {[%clk 0:02:30.1]} 23. c4 {[%clk 0:01:45.9]} 23...
Rxb2+ {[%clk 0:02:29.8]} 24. Kc1 {[%clk 0:01:45.6]} 24... Bxf3 {[%clk 0:02:27]}
25. gxf3 {[%clk 0:01:40.4]} 25... Nd4 {[%clk 0:02:24.4]} 26. Bxd4 {[%clk
0:01:41.5]} 26... cxd4 {[%clk 0:02:25.9]} 27. Ne4 {[%clk 0:01:40.3]} 27... Bh6+
{[%clk 0:02:25.5]} 28. Kd1 {[%clk 0:01:38.9]} 28... d3 {[%clk 0:02:17]} 29. Rxb2
{[%clk 0:01:38.1]} 29... Rxb2 {[%clk 0:02:18.9]} 0-1

[Event "*** Titled Tuesday Blitz"]
[Site "Chess.com"]
[Date "2019.05.07"]
[Round "7"]
[White "Blitzstream"]
[Black "MasterKroket"]
[Result "1-0"]
[WhiteElo "2575"]
[BlackElo "2359"]
[TimeControl "180+2"]
[EndTime "14:36:49 PDT"]
[Termination "Blitzstream won by resignation"]

1. g4 {[%clk 0:03:01.9]} 1... d5 {[%clk 0:02:59.4]} 2. Bg2 {[%clk 0:03:02.7]}
2... c6 {[%clk 0:03:00.6]} 3. g5 {[%clk 0:03:02.5]} 3... e5 {[%clk 0:03:01.1]}
4. d4 {[%clk 0:03:03.8]} 4... e4 {[%clk 0:02:59.3]} 5. c4 {[%clk 0:03:05.1]}
5... Be6 {[%clk 0:02:50.7]} 6. Nc3 {[%clk 0:03:04.7]} 6... Bb4 {[%clk
0:02:47.1]} 7. Qb3 {[%clk 0:03:04.9]} 7... a5 {[%clk 0:02:39.2]} 8. a3 {[%clk
0:03:03.3]} 8... Bxc3+ {[%clk 0:02:40.4]} 9. bxc3 {[%clk 0:03:05.2]} 9... b6
{[%clk 0:02:13.6]} 10. Bf4 {[%clk 0:03:01.3]} 10... Nd7 {[%clk 0:02:10.5]} 11.
h4 {[%clk 0:02:58.6]} 11... Ne7 {[%clk 0:02:10.2]} 12. Qc2 {[%clk 0:02:55.5]}
12... O-O {[%clk 0:02:06]} 13. e3 {[%clk 0:02:56.2]} 13... f6 {[%clk 0:02:03.1]}
14. Ne2 {[%clk 0:02:55.5]} 14... Ng6 {[%clk 0:02:02.5]} 15. Bd6 {[%clk
0:02:54.2]} 15... fxg5 {[%clk 0:01:52.7]} 16. Bxf8 {[%clk 0:02:52.2]} 16...
Ndxf8 {[%clk 0:01:53.6]} 17. hxg5 {[%clk 0:02:45.5]} 17... Qxg5 {[%clk
0:01:54.3]} 18. Bh3 {[%clk 0:02:40.2]} 18... Bxh3 {[%clk 0:01:50.8]} 19. Rxh3
{[%clk 0:02:42.1]} 19... Nh4 {[%clk 0:01:50.6]} 20. O-O-O {[%clk 0:02:41]} 20...
Nf3 {[%clk 0:01:51]} 21. Rdh1 {[%clk 0:02:34.5]} 21... h6 {[%clk 0:01:45.3]} 22.
Rg3 {[%clk 0:02:34.8]} 22... Qf6 {[%clk 0:01:39.8]} 23. Nf4 {[%clk 0:02:34.3]}
23... Ne6 {[%clk 0:01:29.7]} 24. Rg6 {[%clk 0:02:04.9]} 24... Nxf4 {[%clk
0:01:23.6]} 25. Rxf6 {[%clk 0:02:06]} 25... Nd3+ {[%clk 0:01:25.1]} 26. Qxd3
{[%clk 0:02:06.9]} 1-0

[Event "*** Titled Tuesday Blitz"]
[Site "Chess.com"]
[Date "2019.05.07"]
[Round "7"]
[White "ChessQueen"]
[Black "mitrabhaa"]
[Result "0-1"]
[WhiteElo "2643"]
[BlackElo "2673"]
[TimeControl "180+2"]
[EndTime "14:36:53 PDT"]
[Termination "mitrabhaa won by resignation"]

1. e4 {[%clk 0:03:01.9]} 1... c6 {[%clk 0:03:00.9]} 2. c4 {[%clk 0:03:02.6]}
2... d5 {[%clk 0:03:01.6]} 3. cxd5 {[%clk 0:03:03.9]} 3... cxd5 {[%clk
0:03:03.1]} 4. exd5 {[%clk 0:03:05.6]} 4... Nf6 {[%clk 0:03:04.7]} 5. Nc3 {[%clk
0:03:06]} 5... g6 {[%clk 0:03:05.8]} 6. Bc4 {[%clk 0:03:05.6]} 6... Bg7 {[%clk
0:03:06.8]} 7. Nf3 {[%clk 0:03:05.8]} 7... O-O {[%clk 0:03:08.3]} 8. O-O {[%clk
0:03:06.8]} 8... Nbd7 {[%clk 0:03:09.9]} 9. d3 {[%clk 0:03:06.5]} 9... Nb6
{[%clk 0:03:10.8]} 10. Qb3 {[%clk 0:03:07.7]} 10... Bf5 {[%clk 0:03:09.2]} 11.
Be3 {[%clk 0:03:06]} 11... Rc8 {[%clk 0:03:09.6]} 12. Bxb6 {[%clk 0:03:00.2]}
12... axb6 {[%clk 0:03:05.7]} 13. Nd4 {[%clk 0:02:55.8]} 13... Bd7 {[%clk
0:03:04.5]} 14. Nc2 {[%clk 0:02:34.6]} 14... Ne8 {[%clk 0:03:01.2]} 15. Ne3
{[%clk 0:02:24.9]} 15... Nd6 {[%clk 0:03:01.7]} 16. a4 {[%clk 0:02:26.1]} 16...
Rc5 {[%clk 0:02:59]} 17. Ne4 {[%clk 0:02:24.6]} 17... Ra5 {[%clk 0:02:53.1]} 18.
Qb4 {[%clk 0:02:15.7]} 18... Bd4 {[%clk 0:02:46.6]} 19. Nc2 {[%clk 0:02:10.5]}
19... Be5 {[%clk 0:02:37.6]} 20. f4 {[%clk 0:02:00]} 20... Bg7 {[%clk
0:02:38.2]} 21. Ra2 {[%clk 0:01:37.4]} 21... Qc7 {[%clk 0:02:36.7]} 22. b3
{[%clk 0:01:33.4]} 22... b5 {[%clk 0:02:24.3]} 23. Nxd6 {[%clk 0:01:28.9]} 23...
exd6 {[%clk 0:02:24.3]} 24. Qd2 {[%clk 0:01:13.4]} 24... bxc4 {[%clk 0:02:20]}
0-1

[Event "*** Titled Tuesday Blitz"]
[Site "Chess.com"]
[Date "2019.05.07"]
[Round "7"]
[White "tomozupan"]
[Black "fusaran"]
[Result "0-1"]
[WhiteElo "2263"]
[BlackElo "2257"]
[TimeControl "180+2"]
[EndTime "14:37:13 PDT"]
[Termination "fusaran won by resignation"]

1. d4 {[%clk 0:03:01.9]} 1... d5 {[%clk 0:02:59.7]} 2. c4 {[%clk 0:03:02.4]}
2... c6 {[%clk 0:03:01.2]} 3. cxd5 {[%clk 0:03:02.5]} 3... cxd5 {[%clk
0:03:02.3]} 4. Nc3 {[%clk 0:03:04]} 4... e5 {[%clk 0:03:03.2]} 5. dxe5 {[%clk
0:03:02.6]} 5... d4 {[%clk 0:03:05.1]} 6. Ne4 {[%clk 0:03:03.2]} 6... Qa5+
{[%clk 0:03:06.3]} 7. Nd2 {[%clk 0:03:03.3]} 7... Nc6 {[%clk 0:03:06.5]} 8. Nf3
{[%clk 0:03:04.1]} 8... Bg4 {[%clk 0:03:07.4]} 9. g3 {[%clk 0:03:00.5]} 9...
Bxf3 {[%clk 0:03:07.9]} 10. exf3 {[%clk 0:03:00.9]} 10... Qxe5+ {[%clk
0:03:09.4]} 11. Qe2 {[%clk 0:02:56.1]} 11... O-O-O {[%clk 0:03:09.1]} 12. Qxe5
{[%clk 0:02:55.5]} 12... Nxe5 {[%clk 0:03:11]} 13. Be2 {[%clk 0:02:53.7]} 13...
d3 {[%clk 0:03:08.3]} 14. Bd1 {[%clk 0:02:54]} 14... Bb4 {[%clk 0:03:08.8]} 15.
O-O {[%clk 0:02:51.5]} 15... Nf6 {[%clk 0:03:07]} 16. a3 {[%clk 0:02:43.3]}
16... Ba5 {[%clk 0:03:06.7]} 17. b4 {[%clk 0:02:42.2]} 17... Bb6 {[%clk
0:03:07.8]} 18. Bb2 {[%clk 0:02:40.9]} 18... Nc6 {[%clk 0:03:06.3]} 19. Bxf6
{[%clk 0:02:37.6]} 19... gxf6 {[%clk 0:03:06.8]} 20. Bb3 {[%clk 0:02:32.7]}
20... Rhe8 {[%clk 0:03:01.6]} 21. Bxf7 {[%clk 0:02:27.3]} 21... Re2 {[%clk
0:03:02.4]} 22. Rad1 {[%clk 0:02:27.3]} 22... Nd4 {[%clk 0:02:43.5]} 23. Kg2
{[%clk 0:02:22.4]} 23... Nc2 {[%clk 0:02:38.9]} 24. a4 {[%clk 0:02:08.5]} 24...
Ne3+ {[%clk 0:02:39.1]} 25. Kg1 {[%clk 0:02:05.6]} 25... Nxd1 {[%clk 0:02:37.1]}
26. Rxd1 {[%clk 0:02:05.9]} 26... Bxf2+ {[%clk 0:02:30.6]} 27. Kf1 {[%clk
0:02:06.6]} 27... Bb6 {[%clk 0:02:16.4]} 28. Ne4 {[%clk 0:02:06.2]} 28... Rxh2
{[%clk 0:02:06.7]} 29. Be6+ {[%clk 0:01:57.1]} 29... Kb8 {[%clk 0:02:06.6]} 30.
Ke1 {[%clk 0:01:50.3]} 30... Rh1+ {[%clk 0:02:07.1]} 31. Kd2 {[%clk 0:01:51.1]}
31... Be3+ {[%clk 0:02:08]} 32. Kxe3 {[%clk 0:01:47.7]} 32... Rxd1 {[%clk
0:02:08.4]} 33. Bc4 {[%clk 0:01:48]} 33... Re1+ {[%clk 0:02:06.2]} 34. Kd2
{[%clk 0:01:48.2]} 34... Re2+ {[%clk 0:02:06.9]} 35. Kc3 {[%clk 0:01:49.2]}
35... Rxe4 {[%clk 0:02:05.7]} 36. fxe4 {[%clk 0:01:45.7]} 36... d2 {[%clk
0:02:06.4]} 0-1

[Event "*** Titled Tuesday Blitz"]
[Site "Chess.com"]
[Date "2019.05.07"]
[Round "7"]
[White "biostatistician"]
[Black "FedaMaster"]
[Result "0-1"]
[WhiteElo "2511"]
[BlackElo "2322"]
[TimeControl "180+2"]
[EndTime "14:38:01 PDT"]
[Termination "FedaMaster won by checkmate"]

1. d4 {[%clk 0:03:01.8]} 1... Nf6 {[%clk 0:03:00.3]} 2. Nf3 {[%clk 0:03:03.7]}
2... g6 {[%clk 0:02:56.2]} 3. c4 {[%clk 0:03:04.8]} 3... Bg7 {[%clk 0:02:57.2]}
4. Nc3 {[%clk 0:03:06.7]} 4... d5 {[%clk 0:02:58.4]} 5. cxd5 {[%clk 0:03:07.9]}
5... Nxd5 {[%clk 0:02:59.3]} 6. e4 {[%clk 0:03:09.8]} 6... Nxc3 {[%clk
0:03:00.8]} 7. bxc3 {[%clk 0:03:11.7]} 7... c5 {[%clk 0:03:02.7]} 8. Be3 {[%clk
0:03:12.3]} 8... O-O {[%clk 0:03:02.9]} 9. Be2 {[%clk 0:03:12.4]} 9... cxd4
{[%clk 0:02:57.9]} 10. cxd4 {[%clk 0:03:14.3]} 10... Qa5+ {[%clk 0:02:58.7]} 11.
Qd2 {[%clk 0:03:13.5]} 11... Qxd2+ {[%clk 0:02:59.4]} 12. Nxd2 {[%clk
0:03:15.4]} 12... Rd8 {[%clk 0:03:00.9]} 13. Nb3 {[%clk 0:03:16.3]} 13... Nc6
{[%clk 0:02:57.5]} 14. O-O-O {[%clk 0:03:17.4]} 14... e6 {[%clk 0:02:54.3]} 15.
Rd2 {[%clk 0:03:14.3]} 15... Bd7 {[%clk 0:02:53]} 16. Rhd1 {[%clk 0:03:14.9]}
16... Rac8 {[%clk 0:02:48]} 17. Kb1 {[%clk 0:03:14.2]} 17... Ne7 {[%clk
0:02:46.9]} 18. Bg5 {[%clk 0:03:11.6]} 18... f6 {[%clk 0:02:45.7]} 19. Bf4
{[%clk 0:03:11.6]} 19... f5 {[%clk 0:02:26.9]} 20. f3 {[%clk 0:03:11.2]} 20...
fxe4 {[%clk 0:02:27.3]} 21. fxe4 {[%clk 0:03:12.1]} 21... Bc6 {[%clk 0:02:27.6]}
22. Bf3 {[%clk 0:02:58.6]} 22... b6 {[%clk 0:02:12.6]} 23. d5 {[%clk 0:02:54.5]}
23... exd5 {[%clk 0:02:13.4]} 24. exd5 {[%clk 0:02:56.4]} 24... Ba8 {[%clk
0:01:54.7]} 25. Nd4 {[%clk 0:02:30.2]} 25... Nxd5 {[%clk 0:01:45.3]} 26. Bxd5+
{[%clk 0:02:20.4]} 26... Rxd5 {[%clk 0:01:46]} 27. Be3 {[%clk 0:01:50]} 27...
Re5 {[%clk 0:01:36.2]} 28. Bf2 {[%clk 0:01:46.5]} 28... Be4+ {[%clk 0:01:36.3]}
29. Kb2 {[%clk 0:01:46.3]} 29... Rb5+ {[%clk 0:01:30.5]} 30. Ka3 {[%clk
0:01:44.3]} 30... Bf8+ {[%clk 0:01:19.4]} 31. Ka4 {[%clk 0:01:44.2]} 31... Rb4+
{[%clk 0:01:20.5]} 32. Ka3 {[%clk 0:01:43.4]} 32... Rc3+ {[%clk 0:01:17]} 33.
Nb3 {[%clk 0:01:41.8]} 33... Rbxb3+ {[%clk 0:01:18.1]} 34. Ka4 {[%clk
0:01:40.8]} 34... Bc6# {[%clk 0:01:19.3]} 0-1

[Event "*** Titled Tuesday Blitz"]
[Site "Chess.com"]
[Date "2019.05.07"]
[Round "7"]
[White "NM2019"]
[Black "dopolian"]
[Result "0-1"]
[WhiteElo "2140"]
[BlackElo "2256"]
[TimeControl "180+2"]
[EndTime "14:38:39 PDT"]
[Termination "dopolian won by resignation"]

1. c4 {[%clk 0:03:01.7]} 1... Nf6 {[%clk 0:02:59.8]} 2. Nf3 {[%clk 0:03:02.8]}
2... e6 {[%clk 0:03:01]} 3. g3 {[%clk 0:03:04.1]} 3... d5 {[%clk 0:03:00.3]} 4.
d4 {[%clk 0:03:05.3]} 4... c6 {[%clk 0:03:00.9]} 5. Bg2 {[%clk 0:03:06.6]} 5...
Be7 {[%clk 0:03:01.1]} 6. O-O {[%clk 0:03:07.9]} 6... Nbd7 {[%clk 0:03:02.2]} 7.
Ne5 {[%clk 0:03:09.1]} 7... O-O {[%clk 0:03:02.9]} 8. Nc3 {[%clk 0:02:57.5]}
8... Nxe5 {[%clk 0:03:02.8]} 9. dxe5 {[%clk 0:02:58.5]} 9... Nd7 {[%clk
0:03:03.9]} 10. cxd5 {[%clk 0:02:59.5]} 10... cxd5 {[%clk 0:02:57.5]} 11. f4
{[%clk 0:03:00.7]} 11... f5 {[%clk 0:02:56.5]} 12. Be3 {[%clk 0:02:56.7]} 12...
b6 {[%clk 0:02:52.1]} 13. Rc1 {[%clk 0:02:56.6]} 13... Ba6 {[%clk 0:02:50]} 14.
a3 {[%clk 0:02:56]} 14... Nc5 {[%clk 0:02:44.2]} 15. b3 {[%clk 0:02:55.2]} 15...
Bb7 {[%clk 0:02:43.6]} 16. b4 {[%clk 0:02:56]} 16... Ne4 {[%clk 0:02:43.9]} 17.
Bxe4 {[%clk 0:02:53.4]} 17... dxe4 {[%clk 0:02:39.3]} 18. Qxd8 {[%clk
0:02:53.2]} 18... Rfxd8 {[%clk 0:02:41.2]} 19. Rfd1 {[%clk 0:02:54.2]} 19...
Rxd1+ {[%clk 0:02:36.7]} 20. Rxd1 {[%clk 0:02:55.1]} 20... Rd8 {[%clk
0:02:38.6]} 21. Rxd8+ {[%clk 0:02:53.5]} 21... Bxd8 {[%clk 0:02:40.5]} 22. Nb5
{[%clk 0:02:53.4]} 22... a6 {[%clk 0:02:35.3]} 23. Nd6 {[%clk 0:02:52.6]} 23...
Bc6 {[%clk 0:02:24]} 24. Nc8 {[%clk 0:02:52.7]} 24... b5 {[%clk 0:02:23.2]} 25.
Nd6 {[%clk 0:02:51.3]} 25... Kf8 {[%clk 0:02:21]} 26. Bc5 {[%clk 0:02:51.8]}
26... Be7 {[%clk 0:02:20.2]} 27. e3 {[%clk 0:02:52]} 27... h6 {[%clk 0:02:17.2]}
28. h4 {[%clk 0:02:52.4]} 28... Bd5 {[%clk 0:02:15.3]} 29. Kf2 {[%clk 0:02:53]}
29... Bxd6 {[%clk 0:01:59.2]} 30. Bxd6+ {[%clk 0:02:51.6]} 30... Kf7 {[%clk
0:01:59.8]} 31. h5 {[%clk 0:02:50.6]} 31... Bb3 {[%clk 0:01:55.5]} 32. Ke2
{[%clk 0:02:47.3]} 32... Bc4+ {[%clk 0:01:51.2]} 33. Kf2 {[%clk 0:02:48.2]}
33... Bd3 {[%clk 0:01:51]} 34. Bc5 {[%clk 0:02:46.6]} 34... Bc2 {[%clk
0:01:40.5]} 35. Ke2 {[%clk 0:02:46.4]} 35... Kg8 {[%clk 0:01:38.6]} 36. Kd2
{[%clk 0:02:45.7]} 36... Bd3 {[%clk 0:01:38.8]} 37. Ke1 {[%clk 0:02:46.1]} 37...
Kh7 {[%clk 0:01:31.9]} 38. Kd2 {[%clk 0:02:45]} 38... Bf1 {[%clk 0:01:32.5]} 39.
Ke1 {[%clk 0:02:41.4]} 39... Bh3 {[%clk 0:01:32.8]} 40. Kd2 {[%clk 0:02:37.1]}
40... Bg4 {[%clk 0:01:31.8]} 41. Kc3 {[%clk 0:02:37.8]} 41... Bxh5 {[%clk
0:01:31]} 42. Kd4 {[%clk 0:02:39.1]} 42... Kg6 {[%clk 0:01:17.9]} 43. Be7 {[%clk
0:02:40]} 43... Bd1 {[%clk 0:01:11.7]} 44. Kc5 {[%clk 0:02:40.3]} 44... Kh5
{[%clk 0:01:08.3]} 45. Kc6 {[%clk 0:02:33.9]} 45... Kg4 {[%clk 0:01:07.4]} 46.
Bf8 {[%clk 0:02:32.9]} 46... Kxg3 {[%clk 0:01:03.5]} 47. Bxg7 {[%clk 0:02:34.4]}
47... h5 {[%clk 0:01:04.9]} 48. Kd6 {[%clk 0:02:35]} 48... Bb3 {[%clk
0:01:04.7]} 0-1

[Event "*** Titled Tuesday Blitz"]
[Site "Chess.com"]
[Date "2019.05.07"]
[Round "7"]
[White "Alexander_Moskalenko"]
[Black "PE-TRO"]
[Result "1-0"]
[WhiteElo "2872"]
[BlackElo "2792"]
[TimeControl "180+2"]
[EndTime "14:38:50 PDT"]
[Termination "Alexander_Moskalenko won by checkmate"]

1. Nf3 {[%clk 0:03:01.9]} 1... Nf6 {[%clk 0:03:00.1]} 2. c4 {[%clk 0:03:02.5]}
2... g6 {[%clk 0:03:01]} 3. Nc3 {[%clk 0:02:56.5]} 3... Bg7 {[%clk 0:03:01.8]}
4. e4 {[%clk 0:02:54.5]} 4... c5 {[%clk 0:03:01.3]} 5. d4 {[%clk 0:02:54.7]}
5... cxd4 {[%clk 0:03:02.8]} 6. Nxd4 {[%clk 0:02:56.6]} 6... Nc6 {[%clk
0:03:04.2]} 7. Be2 {[%clk 0:02:55.7]} 7... Nxd4 {[%clk 0:03:04]} 8. Qxd4 {[%clk
0:02:55.7]} 8... O-O {[%clk 0:03:05]} 9. O-O {[%clk 0:02:47.7]} 9... d6 {[%clk
0:03:05.3]} 10. Qe3 {[%clk 0:02:34.3]} 10... Be6 {[%clk 0:03:04.4]} 11. Bd2
{[%clk 0:02:32.6]} 11... a6 {[%clk 0:03:01.6]} 12. b3 {[%clk 0:02:29.8]} 12...
Rc8 {[%clk 0:02:57.6]} 13. a4 {[%clk 0:02:27.2]} 13... Nd7 {[%clk 0:02:46.6]}
14. Rac1 {[%clk 0:02:26.3]} 14... Nc5 {[%clk 0:02:45.7]} 15. Nd5 {[%clk
0:02:23.9]} 15... Bd7 {[%clk 0:02:29]} 16. a5 {[%clk 0:02:20.9]} 16... Ne6
{[%clk 0:02:29]} 17. Bc3 {[%clk 0:02:13.1]} 17... Bxc3 {[%clk 0:02:15.1]} 18.
Rxc3 {[%clk 0:02:15]} 18... Bc6 {[%clk 0:02:13.1]} 19. Nb6 {[%clk 0:02:15.6]}
19... Rc7 {[%clk 0:02:13.5]} 20. Rd1 {[%clk 0:02:16.8]} 20... Qe8 {[%clk
0:02:11.3]} 21. b4 {[%clk 0:02:15.5]} 21... f6 {[%clk 0:02:11.8]} 22. Bg4 {[%clk
0:02:06]} 22... Qf7 {[%clk 0:02:11.7]} 23. Bxe6 {[%clk 0:02:04.6]} 23... Qxe6
{[%clk 0:02:11.6]} 24. f3 {[%clk 0:02:06.2]} 24... f5 {[%clk 0:02:07.7]} 25.
exf5 {[%clk 0:02:02.1]} 25... Qxe3+ {[%clk 0:02:08.8]} 26. Rxe3 {[%clk 0:02:04]}
26... Rxf5 {[%clk 0:02:09.7]} 27. Rd4 {[%clk 0:01:58.2]} 27... Kf7 {[%clk
0:02:06.3]} 28. Kf2 {[%clk 0:01:59.1]} 28... Rf6 {[%clk 0:02:00.6]} 29. g4
{[%clk 0:01:53]} 29... e5 {[%clk 0:02:01]} 30. Rd2 {[%clk 0:01:51.4]} 30... e4
{[%clk 0:02:01.9]} 31. b5 {[%clk 0:01:39.6]} 31... axb5 {[%clk 0:01:57.2]} 32.
cxb5 {[%clk 0:01:41.5]} 32... Bxb5 {[%clk 0:01:35.3]} 33. Nd5 {[%clk 0:01:41.8]}
33... Rc6 {[%clk 0:01:05.5]} 34. Nxf6 {[%clk 0:01:41.3]} 34... Kxf6 {[%clk
0:01:07.4]} 35. Rxe4 {[%clk 0:01:42.9]} 35... Ra6 {[%clk 0:01:07.9]} 36. Kg3
{[%clk 0:01:42.9]} 36... Bd7 {[%clk 0:01:00.5]} 37. Rb4 {[%clk 0:01:37.4]} 37...
Bc6 {[%clk 0:00:57.7]} 38. Rxd6+ {[%clk 0:01:37.2]} 38... Ke5 {[%clk 0:00:58.7]}
39. Rbd4 {[%clk 0:01:33.3]} 39... Rxa5 {[%clk 0:00:59.4]} 40. f4# {[%clk
0:01:34.6]} 1-0